bitfinex-derivatives/quotes_ETHF0:USTF0_20250212
["timestamp","ask_amount","ask_price","bid_price","bid_amount"]
[1739327610529,3.14038544,2614.9,2614.7,0.00573877]
[1739327610831,3.7782,2614.8,2614.7,0.00573877]
[1739327611033,8.70216135,2614.8,2614.7,0.00573877]
[1739327614234,7.54666135,2614.8,2614.7,0.00573877]
[1739327619037,8.31165135,2614.8,2614.7,0.00573877]
[1739327619237,7.54666135,2614.8,2614.7,0.00573877]
[1739327619532,7.54666135,2614.8,2614.1,41.9202]
[1739327619533,7.6117354,2614.8,2614.1,41.9202]
[1739327619731,3.2078,2614.4,2614.1,41.9202]
[1739327619936,3.2078,2614.4,2614.1,1.1202]
[1739327620140,4.09574491,2614.3,2614.1,1.1202]
[1739327620638,3.14038544,2614.2,2614.0,40.8]
[1739327620839,1.682,2614.1,2614.0,40.8]
[1739327621037,5.72390545,2614.1,2614.0,41.3851]
[1739327621234,1.682,2614.1,2614.0,41.3851]
[1739327621633,6.06480881,2614.1,2614.0,41.3851]
[1739327623139,4.38280881,2614.1,2614.0,41.9937]
[1739327623646,4.13092677,2614.2,2614.0,42.40547604]
[1739327623939,4.13092677,2614.2,2614.1,0.5836]
[1739327624146,1.682,2614.3,2614.1,0.5836]
[1739327624338,4.0407807,2614.2,2614.1,0.5836]
[1739327624535,4.0407807,2614.2,2614.1,41.3836]
[1739327626743,4.0407807,2614.2,2614.1,40.8]
[1739327626946,7.77916614,2614.2,2613.9,0.00573877]
[1739327627143,8.97466614,2614.2,2613.9,0.00573877]
[1739327627346,3.2078,2614.1,2613.9,0.00573877]
[1739327627851,4.01269511,2614.0,2613.9,0.00573877]
[1739327628646,4.07776639,2614.0,2613.9,0.00573877]
[1739327629756,4.01269511,2614.0,2613.9,0.00573877]
[1739327630759,5.69569511,2614.0,2613.9,0.00573877]
[1739327634661,8.90349511,2614.0,2613.9,0.00573877]
[1739327639762,18.87412104,2614.0,2613.3,41.4115]
[1739327639957,3.14038544,2613.5,2613.4,0.41284945]
[1739327640267,3.14038544,2613.5,2613.3,40.8]
[1739327640573,1.683,2613.4,2613.3,40.8]
[1739327640861,4.8908,2613.4,2613.3,41.21294836]
[1739327641068,10.23064268,2613.4,2613.1,0.00573877]
[1739327641566,10.23064268,2613.4,2613.2,40.8]
[1739327641768,10.23064268,2613.4,2613.1,0.00573877]
[1739327642459,3.14038544,2613.2,2613.1,0.00573877]
[1739327642762,3.10370369,2613.2,2613.1,0.00573877]
[1739327643061,7.5296818,2613.2,2613.1,0.00573877]
[1739327647264,6.10897811,2613.2,2613.1,0.00573877]
[1739327647968,9.24936355,2613.2,2613.1,40.80573877]
[1739327649171,9.24936355,2613.2,2612.4,3.2078]
[1739327649363,3.14038544,2612.7,2612.5,0.41277794]
[1739327649567,3.14038544,2612.7,2612.4,3.2078]
[1739327649568,3.2078,2612.6,2612.3,0.566]
[1739327649768,3.2078,2612.6,2612.4,40.8]
[1739327649970,7.46058207,2612.6,2612.4,40.8]
[1739327650164,9.14358207,2612.6,2612.4,40.8]
[1739327650571,9.74138207,2612.6,2612.4,40.8]
[1739327658674,9.14358207,2612.6,2612.4,40.8]
[1739327660477,9.71208207,2612.6,2612.4,40.8]
[1739327661381,9.71208207,2612.6,2612.5,0.00311207]
[1739327666786,9.77697788,2612.6,2612.5,0.00311207]
[1739327667781,15.77697788,2612.6,2612.2,0.00573877]
[1739327668082,6.34818544,2612.3,2612.2,0.00573877]
[1739327668282,6.41306564,2612.3,2612.2,0.00573877]
[1739327668586,10.71571325,2612.3,2612.2,0.00573877]
[1739327669080,11.31411325,2612.3,2612.2,0.00573877]
[1739327669984,12.93323305,2612.3,2612.2,0.00573877]
[1739327670387,12.33483305,2612.3,2612.2,0.00573877]
[1739327670786,12.33483305,2612.3,2612.2,40.80573877]
[1739327671686,12.33483305,2612.3,2612.2,0.00573877]
[1739327671988,12.39973808,2612.3,2612.2,0.00573877]
[1739327672789,13.16545808,2612.3,2612.2,0.00573877]
[1739327672993,12.39973808,2612.3,2612.2,0.00573877]
[1739327673491,12.95223808,2612.3,2612.2,0.00573877]
[1739327674287,13.71795808,2612.3,2612.2,0.00573877]
[1739327674889,12.95223808,2612.3,2612.2,0.00573877]
[1739327675995,12.95221879,2612.3,2612.2,0.00573877]
[1739327676396,13.71793879,2612.3,2612.2,0.00573877]
[1739327676592,0.7658,2612.1,2611.6,40.8]
[1739327676896,6.34818544,2611.7,2611.2,1.1961]
[1739327677086,3.14038544,2611.3,2611.2,1.1961]
[1739327677288,3.14038544,2611.3,2611.2,41.9961]
[1739327677496,7.3219638,2611.3,2611.2,41.9961]
[1739327677697,7.3219638,2611.3,2611.2,1.1961]
[1739327678298,4.18157836,2611.3,2611.2,1.1961]
[1739327680400,7.3219638,2611.3,2611.2,1.1961]
[1739327682998,7.3219638,2611.3,2611.2,41.9961]
[1739327683599,4.18157836,2611.3,2611.2,41.9961]
[1739327683900,3.2078,2611.4,2611.2,42.40889324]
[1739327684102,3.2078,2611.4,2611.2,41.9961]
[1739327685498,4.82438544,2611.6,2611.2,41.9961]
[1739327685702,4.35428078,2611.3,2611.2,41.9961]
[1739327686101,4.82438544,2611.6,2611.2,41.9961]
[1739327686299,3.14038544,2611.3,2611.2,41.9961]
[1739327686506,7.27482753,2611.3,2611.2,1.1961]
[1739327686801,3.14038544,2611.3,2611.2,1.1961]
[1739327686991,7.27482753,2611.3,2611.2,1.1961]
[1739327689101,4.13444209,2611.3,2611.2,1.1961]
[1739327689697,1.684,2611.4,2611.2,1.1961]
[1739327689895,4.02152804,2611.3,2611.2,1.1961]
[1739327690799,4.02152804,2611.3,2611.2,1.60916746]
[1739327691195,4.02152804,2611.3,2611.2,1.6092444]
[1739327692403,4.02152804,2611.3,2611.2,1.60932779]
[1739327693898,4.02152804,2611.3,2611.2,1.60944524]
[1739327694606,1.684,2611.4,2611.2,1.60944524]
[1739327694802,1.684,2611.4,2611.3,0.41334524]
[1739327696003,1.684,2611.4,2611.3,0.41362129]
[1739327696499,1.684,2611.4,2611.3,0.98492792]
[1739327700712,1.684,2611.4,2611.3,0.98542576]
[1739327701414,1.684,2611.4,2611.3,0.41411913]
[1739327701612,1.684,2611.4,2611.3,0.41433348]
[1739327702116,1.1505,2611.9,2611.3,10.0227017]
[1739327702306,4.8918,2612.0,2611.4,4.6918943]
[1739327702506,4.35185061,2611.8,2611.5,0.88219711]
[1739327702710,4.35185061,2611.9,2611.6,0.98633725]
[1739327703010,4.8918,2612.0,2611.7,1.59913348]
[1739327703216,1.1785,2611.9,2611.7,1.1848]
[1739327703414,5.53035061,2611.9,2611.7,1.1848]
[1739327703710,5.53035061,2611.9,2611.7,0.5981]
[1739327707808,5.53035061,2611.9,2611.8,0.41409746]
[1739327707809,4.35185061,2611.9,2611.8,0.41409746]
[1739327708008,4.35185061,2611.9,2611.8,0.99189746]
[1739327708213,4.35185061,2611.9,2611.8,0.99187569]
[1739327709215,4.35185061,2611.9,2611.8,41.79187569]
[1739327709416,4.35185061,2611.9,2611.8,42.36334613]
[1739327709817,4.35185061,2611.9,2611.8,41.79187569]
[1739327710217,4.35185061,2611.9,2611.8,41.3778]
[1739327710615,4.35185061,2611.9,2611.8,41.79158538]
[1739327711007,4.35185061,2611.9,2611.8,41.79158384]
[1739327711920,4.35185061,2611.9,2611.8,41.79152747]
[1739327712517,0.5729,2612.1,2611.8,42.3626406]
[1739327712718,0.5729,2612.1,2611.9,0.41372747]
[1739327712917,3.99317798,2612.0,2611.8,41.94891313]
[1739327713125,3.2078,2612.7,2611.9,6.76184449]
[1739327713326,0.561,2612.6,2612.0,0.41365905]
[1739327713627,3.99317798,2612.4,2612.1,0.41365905]
[1739327713826,3.99317798,2612.5,2612.2,0.41348078]
[1739327714125,0.561,2612.6,2611.9,6.90988544]
[1739327714335,4.2837644,2612.5,2612.0,0.41347131]
[1739327714530,4.2837644,2612.5,2611.9,6.90988544]
[1739327714821,4.2837644,2612.5,2612.0,0.41334493]
[1739327715027,4.2837644,2612.5,2611.9,6.90988544]
[1739327715321,4.2837644,2612.5,2612.0,0.4133448]
[1739327715623,4.2837644,2612.5,2611.9,6.90988544]
[1739327715821,7.42414984,2612.5,2612.0,0.41324125]
[1739327716124,7.42414984,2612.5,2611.9,3.2078]
[1739327716125,4.2837644,2612.5,2611.9,3.2078]
[1739327716424,4.2837644,2612.5,2612.0,41.21316698]
[1739327716625,4.2837644,2612.5,2612.0,40.8]
[1739327717427,4.2837644,2612.5,2612.1,0.5857]
[1739327720021,4.2837644,2612.5,2612.2,3.2078]
[1739327720726,3.14038544,2612.4,2612.2,3.2078]
[1739327721234,4.33105786,2612.3,2612.2,3.2078]
[1739327721534,4.33105786,2612.3,2611.9,40.8]
[1739327721837,1.8264,2612.2,2611.9,40.8]
[1739327722227,4.34822465,2612.1,2611.9,40.8]
[1739327722424,4.34822465,2612.1,2612.0,0.4131838]
[1739327723837,3.2078,2612.7,2612.0,3.6209838]
[1739327724135,5.22140243,2612.6,2612.1,0.4131838]
[1739327724437,5.81050243,2612.6,2612.2,40.8]
[1739327725132,5.81050243,2612.6,2612.2,41.394]
[1739327728938,3.14612421,2612.8,2612.3,7.22839928]
[1739327728939,0.00573877,2612.8,2612.3,7.22839928]
[1739327729136,3.2078,2613.3,2612.7,3.2078]
[1739327729338,20.058,2613.4,2613.0,3.2078]
[1739327729839,4.0850284,2613.3,2613.1,41.21309395]
[1739327730134,20.058,2613.4,2613.1,41.21309395]
[1739327730135,1.1768,2613.8,2613.2,4.14426147]
[1739327730338,0.00573877,2613.5,2613.3,4.20536397]
[1739327730534,1.683,2614.2,2613.4,0.41263502]
[1739327730732,1.683,2614.2,2613.6,3.2078]
[1739327731042,5.85013574,2614.2,2613.7,3.14038544]
[1739327731338,4.16713574,2614.2,2613.9,3.2078]
[1739327731734,4.01548243,2614.3,2613.9,3.2078]
[1739327731939,0.00573877,2614.3,2613.9,3.2078]
[1739327732234,4.00974366,2614.2,2613.9,3.2078]
[1739327733228,4.00974366,2614.2,2614.0,0.5845]
[1739327733827,0.00573877,2614.3,2614.0,0.5845]
[1739327734036,0.00573877,2614.3,2614.2,3.2078]
[1739327735032,0.00573877,2614.3,2614.0,1.1393]
[1739327739140,0.00573877,2614.3,2613.9,3.2078]
[1739327739337,4.31314023,2614.2,2613.5,40.8]
[1739327739536,0.5958,2614.1,2613.6,3.2078]
[1739327739938,4.55895693,2614.0,2613.6,3.2078]
[1739327740238,7.69934237,2614.0,2613.5,40.8]
[1739327740437,10.90714237,2614.0,2613.5,40.8]
[1739327740643,10.90714237,2614.0,2613.3,3.2078]
[1739327740945,3.14038544,2613.7,2613.3,3.2078]
[1739327741135,3.14038544,2613.7,2613.4,40.8]
[1739327741336,4.09947175,2613.6,2613.4,40.8]
[1739327741642,1.682,2613.5,2613.4,40.8]
[1739327741834,2.2335,2613.5,2613.4,40.8]
[1739327742037,6.54544437,2613.5,2613.4,40.8]
[1739327743044,5.99394437,2613.5,2613.4,40.8]
[1739327747250,4.31194437,2613.5,2613.4,40.8]
[1739327747452,5.99394437,2613.5,2613.4,40.8]
[1739327747746,1.682,2613.5,2613.4,40.8]
[1739327747948,5.73086358,2613.5,2613.4,40.8]
[1739327748160,4.04886358,2613.5,2613.4,40.8]
[1739327748650,5.73086358,2613.6,2613.4,40.8]
[1739327748846,0.5979,2613.5,2613.4,40.8]
[1739327749052,4.6569545,2613.5,2613.4,40.8]
[1739327751650,4.8898,2613.7,2613.4,40.8]
[1739327752056,4.32308326,2613.6,2613.4,40.8]
[1739327753558,4.32308326,2613.6,2613.0,3.2078]
[1739327753559,1.125,2613.5,2613.0,3.2078]
[1739327753961,5.02651546,2613.4,2613.1,40.8]
[1739327754361,4.42901546,2613.4,2613.1,40.8]
[1739327756658,5.02471546,2613.4,2613.1,40.8]
[1739327758066,4.42901546,2613.4,2613.1,40.8]
[1739327760563,10.7772009,2613.4,2612.9,0.00573877]
[1739327761275,3.2078,2613.1,2612.9,0.00573877]
[1739327761569,1.1175,2613.0,2612.9,0.00573877]
[1739327761765,5.13336302,2613.0,2612.9,0.00573877]
[1739327765168,5.13336302,2613.0,2612.3,40.8]
[1739327765467,3.14038544,2612.6,2612.3,40.8]
[1739327765661,0.5904,2612.5,2612.3,40.8]
[1739327765867,4.95801087,2612.5,2612.3,40.8]
[1739327767772,4.36761087,2612.5,2612.3,40.8]
[1739327768168,4.89653877,2612.7,2612.3,40.8]
[1739327768564,4.10490889,2612.6,2612.3,40.8]
[1739327772783,7.24529433,2612.6,2612.2,0.5593]
[1739327773076,0.5741,2612.5,2612.2,0.5593]
[1739327773476,4.82118159,2612.4,2612.1,40.80573877]
[1739327775169,4.25958159,2612.4,2612.1,40.80573877]
[1739327776682,4.662,2612.6,2612.2,0.41257012]
[1739327776979,4.662,2612.6,2612.3,1.58437012]
[1739327777180,4.662,2612.6,2612.3,1.1718]
[1739327777577,4.12301986,2612.5,2612.3,0.6056]
[1739327778778,1.683,2612.6,2612.4,40.8]
[1739327778978,1.683,2612.6,2612.5,0.6096]
[1739327780383,0.00573877,2612.7,2612.5,0.6096]
[1739327780884,4.18980866,2612.6,2612.5,0.6096]
[1739327781084,4.18980866,2612.6,2612.5,1.02229573]
[1739327781385,4.18980866,2612.6,2612.5,1.02229493]
[1739327781886,4.18980866,2612.6,2612.5,1.02237515]
[1739327783386,4.18980866,2612.6,2612.5,1.02263361]
[1739327784087,4.18980866,2612.6,2612.5,0.41303361]
[1739327785388,4.18980866,2612.6,2612.5,0.41330015]
[1739327786589,4.18980866,2612.6,2612.5,0.98412744]
[1739327787388,4.18980866,2612.6,2612.5,0.57082729]
[1739327787582,4.18980866,2612.6,2612.5,0.98441403]
[1739327788284,4.18980866,2612.6,2612.5,1.4514524]
[1739327788988,3.2078,2613.0,2612.5,4.59183784]
[1739327789184,3.2078,2613.0,2612.6,1.46222511]
[1739327789381,2.2361,2613.4,2612.7,4.08842511]
[1739327789581,0.5531,2613.4,2613.0,3.2078]
[1739327789792,4.30173393,2613.3,2613.1,1.46613689]
[1739327789990,4.30173393,2613.3,2613.2,0.41396046]
[1739327790288,4.30173393,2613.3,2613.2,0.98478775]
[1739327791091,1.68873877,2613.5,2613.2,0.98478775]
[1739327791287,0.00573877,2613.5,2613.3,0.41396046]
[1739327791588,0.00573877,2613.5,2613.4,0.41396046]
[1739327793284,0.00573877,2613.5,2613.2,1.1701]
[1739327793485,0.00573877,2613.5,2613.1,0.5847]
[1739327793486,0.00573877,2613.5,2613.3,0.41316655]
[1739327793680,0.56833877,2613.5,2613.4,0.41316705]
[1739327793885,1.12563877,2613.5,2613.1,0.5847]
[1739327794092,4.272795,2613.4,2613.1,0.5847]
[1739327794486,4.272795,2613.4,2613.2,0.41316064]
[1739327795091,4.272795,2613.4,2613.3,0.41316064]
[1739327795295,4.272795,2613.4,2613.1,0.5847]
[1739327795893,4.272795,2613.4,2613.2,0.41312503]
[1739327796991,4.272795,2613.4,2612.8,0.6021]
[1739327797188,4.272795,2613.4,2612.9,0.4131377]
[1739327797389,6.34818544,2613.2,2613.0,0.4131377]
[1739327797586,0.5626,2613.1,2612.9,0.57040219]
[1739327797790,0.5899,2613.0,2612.9,0.57040219]
[1739327798001,0.5899,2613.0,2612.9,0.41313411]
[1739327798190,4.95410313,2613.0,2612.9,0.41313411]
[1739327798993,4.36420313,2613.0,2612.9,0.41313411]
[1739327799792,0.5626,2613.1,2612.9,0.98344854]
[1739327799997,0.5626,2613.1,2613.0,0.41313411]
[1739327800890,0.5626,2613.1,2612.7,40.8]
[1739327801092,0.5626,2613.1,2613.0,0.57027121]
[1739327801293,0.5626,2613.1,2613.0,0.98331236]
[1739327801691,0.5626,2613.1,2613.0,0.4130202]
[1739327802296,0.6087,2613.3,2613.0,0.4130202]
[1739327802497,1.2131,2613.3,2613.1,0.4130202]
[1739327802697,4.43964676,2613.2,2612.7,40.8]
[1739327802897,4.43964676,2613.2,2612.8,1.44964311]
[1739327803093,4.43964676,2613.2,2612.9,0.41301185]
[1739327803304,4.43964676,2613.2,2613.0,0.41301185]
[1739327803494,4.43964676,2613.2,2613.1,0.41301185]
[1739327807205,0.00573877,2613.5,2613.1,0.41301185]
[1739327807404,0.00573877,2613.5,2613.2,0.41323013]
[1739327807604,0.00573877,2613.5,2613.3,0.41323013]
[1739327807804,0.00573877,2613.5,2613.4,0.41323013]
[1739327809111,8.12858651,2613.5,2612.9,0.56]
[1739327809407,11.33638651,2613.5,2613.0,0.41339333]
[1739327809608,11.33638651,2613.5,2612.9,0.56]
[1739327809609,11.33638651,2613.5,2613.1,0.41339333]
[1739327809797,11.33638651,2613.5,2613.2,0.41339567]
[1739327810110,11.33638651,2613.5,2612.8,2.998]
[1739327810306,3.14038544,2613.1,2612.9,0.41340198]
[1739327810503,1.7176,2613.0,2612.8,2.998]
[1739327810807,5.95812562,2613.0,2612.9,0.98435521]
[1739327811504,5.95812562,2613.0,2612.9,0.9844053]
[1739327811703,0.5885,2613.4,2612.9,0.9844053]
[1739327811898,0.5747,2613.3,2613.0,0.98183094]
[1739327812205,4.89902934,2613.3,2613.1,0.41353094]
[1739327812405,4.89902934,2613.3,2613.2,0.41353094]
[1739327813307,4.89902934,2613.3,2613.2,0.98452088]
[1739327813508,4.89902934,2613.3,2613.2,0.98461649]
[1739327815705,0.5747,2613.3,2613.2,0.98461649]
[1739327816405,1.68773877,2613.5,2613.2,1.45209662]
[1739327816606,0.00573877,2613.5,2613.3,0.88110381]
[1739327816811,0.00573877,2613.5,2613.4,5.36508925]
[1739327817017,6.34818544,2614.4,2613.4,5.36508925]
[1739327817018,0.6116,2614.1,2613.5,0.76537]
[1739327817306,0.6116,2614.1,2613.8,3.2078]
[1739327817502,0.6116,2614.1,2613.9,1.45930381]
[1739327817703,0.6116,2614.1,2614.0,0.88076555]
[1739327818106,0.00573877,2614.3,2614.0,0.88079523]
[1739327818315,0.00573877,2614.3,2614.2,3.2078]
[1739327818611,0.00573877,2614.3,2614.2,3.6214567]
[1739327819107,0.00573877,2614.3,2614.2,4.19244664]
[1739327819810,0.5855,2614.7,2614.2,4.19244664]
[1739327819811,4.8898,2615.0,2614.2,10.0871217]
[1739327820004,0.553,2614.9,2614.5,3.2078]
[1739327820199,4.80940078,2614.9,2614.6,41.21296262]
[1739327820404,4.80940078,2614.9,2614.7,0.41296262]
[1739327820711,4.80940078,2614.9,2614.8,0.41292846]
[1739327821414,0.553,2614.9,2614.8,0.41292846]
[1739327822105,0.553,2614.9,2614.7,0.5642]
[1739327822906,0.553,2614.9,2614.6,40.8]
[1739327823117,0.553,2614.9,2614.5,3.2078]
[1739327823314,0.553,2614.9,2614.6,0.41198205]
[1739327823516,0.553,2614.9,2614.5,3.2078]
[1739327824213,0.553,2614.9,2614.6,40.8]
[1739327824909,0.553,2614.9,2614.5,3.2078]
[1739327825304,4.38777024,2614.8,2614.5,3.2078]
[1739327826216,4.99507024,2614.8,2614.5,3.2078]
[1739327826812,4.99507024,2614.8,2614.3,43.94038544]
[1739327827014,4.99507024,2614.8,2614.3,40.8]
[1739327827218,0.5813,2614.7,2614.3,40.8]
[1739327827516,5.40268544,2614.7,2614.3,40.8]
[1739327827712,4.0456415,2614.6,2614.3,40.8]
[1739327833715,4.0456415,2614.6,2614.3,41.3812]
[1739327835218,4.0456415,2614.6,2614.3,44.52158544]
[1739327835425,2.979,2614.8,2614.5,3.2078]
[1739327837425,0.553,2614.9,2614.5,3.2078]
[1739327837625,0.553,2614.9,2614.6,0.41147383]
[1739327837923,0.553,2614.9,2614.6,0.6019]
[1739327838714,0.553,2614.9,2614.8,3.2078]
[1739327841525,0.553,2614.9,2614.4,3.7953]
[1739327841727,4.67577429,2614.9,2614.4,3.2078]
[1739327845136,4.67577429,2614.9,2614.3,41.3812]
[1739327845837,7.88357429,2614.9,2614.3,41.3812]
[1739327846033,3.14038544,2614.7,2614.3,40.8]
[1739327846235,4.82138544,2614.7,2614.3,40.8]
[1739327846436,5.28456721,2614.6,2614.3,40.8]
[1739327846735,5.28456721,2614.6,2614.4,0.41356922]
[1739327846937,5.28456721,2614.6,2614.5,0.41356492]
[1739327847438,5.28456721,2614.6,2614.3,40.8]
[1739327847739,5.28456721,2614.6,2614.4,0.4136623]
[1739327847952,5.28456721,2614.6,2614.3,40.8]
[1739327848135,5.28456721,2614.6,2614.4,0.41365851]
[1739327848440,5.28456721,2614.6,2614.3,40.8]
[1739327848735,5.28456721,2614.6,2614.4,0.4136575]
[1739327848936,5.28456721,2614.6,2614.3,40.8]
[1739327849137,5.28456721,2614.6,2614.4,0.41365892]
[1739327849337,5.28456721,2614.6,2614.3,40.8]
[1739327849538,5.28456721,2614.6,2614.4,0.41364276]
[1739327849735,5.28456721,2614.6,2614.3,40.8]
[1739327849936,4.14636721,2614.6,2614.4,0.41363126]
[1739327850136,4.14636721,2614.6,2614.5,0.41363126]
[1739327850344,4.14636721,2614.6,2614.5,0.41361145]
[1739327850639,4.66,2614.8,2614.5,0.98469317]
[1739327850839,4.66,2614.8,2614.6,0.41361145]
[1739327851032,2.979,2614.8,2614.7,0.41361145]
[1739327851429,3.2078,2615.0,2614.7,0.41361145]
[1739327851742,0.00573877,2615.1,2614.8,0.41361145]
[1739327851935,20.046,2615.4,2614.9,7.32427996]
[1739327852133,1.681,2615.6,2615.2,3.2078]
[1739327852334,1.681,2615.6,2615.3,0.41359452]
[1739327852635,1.681,2615.6,2615.2,3.2078]
[1739327852636,4.43195941,2615.5,2615.4,41.21359452]
[1739327854840,4.43195941,2615.5,2615.4,40.8]
[1739327856132,1.681,2615.6,2615.4,40.8]
[1739327856339,0.00573877,2615.7,2615.4,40.8]
[1739327856539,0.00573877,2615.7,2615.5,0.5565]
[1739327856740,4.33303888,2615.6,2615.5,0.5565]
[1739327860345,0.00573877,2615.7,2615.5,0.5565]
[1739327860747,0.00573877,2615.7,2615.6,40.8]
[1739327862140,0.00573877,2615.7,2615.6,41.21257609]
[1739327862546,0.00573877,2615.7,2615.6,40.8]
[1739327862948,0.00573877,2615.7,2615.6,41.21251892]
[1739327863453,0.00573877,2615.7,2615.6,40.8]
[1739327865144,0.00573877,2615.7,2615.6,41.2123927]
[1739327867048,0.00573877,2615.7,2615.6,41.21224479]
[1739327867452,0.00573877,2615.7,2615.6,40.8]
[1739327869657,0.00573877,2615.7,2615.6,41.392]
[1739327870659,0.5525,2616.1,2615.6,41.80407141]
[1739327870859,0.5525,2616.1,2615.7,0.41207141]
[1739327871064,0.5525,2616.1,2615.6,1.1845]
[1739327871255,0.5525,2616.1,2615.7,0.41205515]
[1739327871562,0.5525,2616.1,2615.8,40.8]
[1739327872151,4.36547647,2616.0,2615.8,40.8]
[1739327872961,0.5924,2616.2,2615.8,40.8]
[1739327873460,0.5924,2616.2,2615.8,44.0078]
[1739327874660,4.4124,2616.5,2615.8,44.0078]
[1739327874859,5.017,2616.5,2615.9,3.69558544]
[1739327875066,4.08636254,2616.4,2616.0,0.5729]
[1739327875357,4.08636254,2616.4,2616.1,3.2078]
[1739327880461,4.08636254,2616.4,2616.0,1.1796]
[1739327880668,4.08636254,2616.4,2616.2,3.2078]
[1739327884357,4.08636254,2616.4,2616.3,0.41283384]
[1739327885057,7.29416254,2616.4,2615.9,3.2078]
[1739327885262,4.08636254,2616.4,2615.9,3.7796]
[1739327885463,4.08636254,2616.4,2616.0,0.57012943]
[1739327885661,0.00345188,2616.3,2616.0,0.57012943]
[1739327885963,0.00345188,2616.3,2616.1,0.57012943]
[1739327886566,0.00345188,2616.3,2615.9,3.7796]
[1739327886762,0.00345188,2616.3,2616.0,0.46640808]
[1739327886963,0.00345188,2616.3,2615.9,3.7796]
[1739327887657,0.00345188,2616.3,2616.0,0.57026424]
[1739327887864,4.02417529,2616.2,2616.0,0.57026424]
[1739327888270,3.71578544,2616.1,2616.0,0.57026424]
[1739327888569,5.39478544,2616.1,2616.0,0.57026424]
[1739327888774,9.5333901,2616.1,2615.8,40.8]
[1739327888974,1.1437,2616.0,2615.8,40.8]
[1739327889462,4.33734299,2615.9,2615.8,40.8]
[1739327891466,0.5716,2616.0,2615.8,40.8]
[1739327896475,4.26971874,2615.9,2615.8,40.8]
[1739327897275,10.61790418,2615.9,2615.2,3.21353877]
[1739327897485,6.34818544,2615.6,2615.3,0.40846305]
[1739327897667,2.2894,2615.5,2615.2,0.00573877]
[1739327897872,0.6072,2615.4,2615.2,0.00573877]
[1739327898178,0.5608,2615.3,2615.2,0.00573877]
[1739327898373,4.73651876,2615.3,2615.2,40.80573877]
[1739327899580,0.6072,2615.4,2615.2,41.78452993]
[1739327899774,0.6072,2615.4,2615.3,0.40827621]
[1739327900270,0.6072,2615.4,2615.3,0.97872137]
[1739327900869,0.6072,2615.4,2615.3,0.40820642]
[1739327902179,4.88804619,2615.4,2615.3,0.40820642]
[1739327902375,4.88804619,2615.4,2615.3,0.40804994]
[1739327902876,4.88804619,2615.4,2615.2,40.80573877]
[1739327903078,0.5641,2615.3,2615.2,40.80573877]
[1739327903275,0.5641,2615.3,2615.2,41.21369545]
[1739327903476,4.74398039,2615.3,2615.2,41.21369545]
[1739327904176,4.74398039,2615.3,2615.2,40.80573877]
[1739327904579,0.6072,2615.4,2615.2,41.21355729]
[1739327904779,0.6072,2615.4,2615.3,0.40781852]
[1739327905278,3.775,2615.9,2615.3,0.40781852]
[1739327905474,1.1865,2615.8,2615.4,0.97551852]
[1739327905670,5.30634312,2615.8,2615.5,0.40781852]
[1739327905871,5.30634312,2615.8,2615.4,0.5677]
[1739327906075,5.30634312,2615.8,2615.5,0.4077499]
[1739327906274,5.30634312,2615.8,2615.4,0.5677]
[1739327906477,5.30634312,2615.8,2615.5,0.40779359]
[1739327906671,5.30634312,2615.8,2615.4,0.5677]
[1739327906973,5.30634312,2615.8,2615.5,0.40779166]
[1739327907180,5.30634312,2615.8,2615.2,44.01353877]
[1739327907376,5.30634312,2615.8,2615.3,0.40782673]
[1739327907577,5.30634312,2615.8,2615.2,44.01353877]
[1739327907776,5.30634312,2615.8,2615.3,0.40785686]
[1739327907969,3.14038544,2615.7,2615.2,40.80573877]
[1739327908168,3.14038544,2615.7,2615.3,0.40784243]
[1739327908373,4.32250749,2615.6,2615.2,40.80573877]
[1739327908671,4.32250749,2615.6,2615.3,0.40786845]
[1739327908873,4.32250749,2615.6,2615.2,40.80573877]
[1739327909479,4.32250749,2615.6,2615.3,0.40789016]
[1739327909681,4.32250749,2615.6,2615.2,40.80573877]
[1739327909980,4.32250749,2615.6,2615.3,0.40788286]
[1739327910179,4.32250749,2615.6,2615.2,40.80573877]
[1739327910379,4.32250749,2615.6,2615.3,0.40788417]
[1739327910678,4.21951079,2615.7,2615.4,0.40788485]
[1739327910879,4.21951079,2615.7,2615.2,40.80573877]
[1739327911079,1.1865,2615.8,2615.3,0.40788631]
[1739327911282,4.35705314,2615.7,2615.4,0.40788631]
[1739327911482,4.35705314,2615.7,2615.2,40.80573877]
[1739327911777,4.35705314,2615.7,2615.3,0.40789744]
[1739327911979,4.35705314,2615.7,2615.4,0.40789744]
[1739327912180,7.49743858,2615.7,2615.2,40.80573877]
[1739327912674,7.49743858,2615.7,2615.3,0.40803976]
[1739327912982,7.49743858,2615.7,2615.2,40.80573877]
[1739327913282,7.49743858,2615.7,2615.3,0.40803906]
[1739327913580,7.49743858,2615.7,2615.2,40.80573877]
[1739327913780,7.49743858,2615.7,2615.3,0.40811108]
[1739327913980,7.49743858,2615.7,2615.2,40.80573877]
[1739327914181,7.49743858,2615.7,2615.3,0.40810886]
[1739327914477,7.49743858,2615.7,2615.2,40.80573877]
[1739327917277,3.2078,2615.6,2615.2,40.80573877]
[1739327917679,4.3941941,2615.5,2615.2,40.80573877]
[1739327918277,0.5903,2615.4,2615.2,40.80573877]
[1739327918780,4.11191809,2615.3,2615.2,40.80573877]
[1739327919383,4.11191809,2615.3,2615.2,41.21421106]
[1739327919886,4.11191809,2615.3,2615.2,40.80573877]
[1739327920584,4.11191809,2615.3,2615.2,41.21423927]
[1739327920776,12.14010353,2615.3,2615.2,0.00573877]
[1739327920982,8.02818544,2615.3,2615.2,0.00573877]
[1739327921284,12.43640883,2615.3,2615.2,0.00573877]
[1739327921684,13.03710883,2615.3,2615.2,0.00573877]
[1739327921880,19.03710883,2615.3,2615.2,0.00573877]
[1739327922086,19.03710883,2615.3,2614.6,40.8]
[1739327922285,3.2078,2614.9,2614.6,40.8]
[1739327922679,4.88868622,2614.8,2614.6,40.8]
[1739327924287,4.82038544,2614.7,2614.6,40.8]
[1739327924687,8.85624975,2614.7,2614.6,40.8]
[1739327925385,9.44784975,2614.7,2614.6,40.8]
[1739327929194,9.44784975,2614.7,2614.4,0.00573877]
[1739327929585,9.44784975,2614.7,2614.4,40.80573877]
[1739327930687,7.76784975,2614.7,2614.4,40.80573877]
[1739327930896,1.68,2614.6,2614.5,0.576]